bitfinex/quotes_ETHUSD_20230701
["timestamp","ask_amount","ask_price","bid_price","bid_amount"]
[1688239573498,4.31314914,1925.0,1924.6,5.19984626]
[1688239578713,3.83314914,1925.0,1924.6,10.39572626]
[1688239582325,9.02797914,1925.0,1924.6,5.19984626]
[1688239583315,10.45024405,1925.0,1924.6,5.19984626]
[1688239587115,10.45024405,1925.0,1924.6,0.00396626]
[1688239587729,15.64507405,1925.0,1924.6,0.00396626]
[1688239591928,10.45024405,1925.0,1924.6,0.00396626]
[1688239595147,15.64504405,1925.0,1924.6,0.00396626]
[1688239595343,1.5645044,1924.9,1924.6,0.00396626]
[1688239595656,6.7596144,1924.9,1924.6,0.00396626]
[1688239595862,8.3977144,1924.9,1924.6,0.00396626]
[1688239596374,3.2026044,1924.9,1924.6,0.00396626]
[1688239597164,3.2026044,1924.9,1924.4,10.39256]
[1688239597760,6.7595744,1924.9,1924.4,10.39256]
[1688239598046,1.5645044,1924.9,1924.4,12.99077]
[1688239598278,8.83951405,1925.0,1924.5,0.00384634]
[1688239598479,2.1286,1924.9,1924.6,5.19587]
[1688239598778,0.48,1924.9,1924.6,5.19587]
[1688239599287,0.48,1924.9,1924.7,0.00382646]
[1688239599649,5.67509,1924.9,1924.7,0.00382646]
[1688239599849,0.567509,1924.8,1924.7,0.00382646]
[1688239600381,0.567509,1924.8,1924.5,5.19608]
[1688239600548,2.1722,1924.9,1924.5,5.19608]
[1688239601253,2.1722,1924.9,1924.6,0.0038364]
[1688239601979,7.36735,1924.9,1924.6,0.0038364]
[1688239602153,2.1722,1924.9,1924.6,5.1997164]
[1688239604893,2.1722,1924.9,1924.6,4.9497164]
[1688239605052,3.27338541,1924.9,1924.6,4.9497164]
[1688239605252,3.27338541,1924.9,1924.7,0.00367891]
[1688239606094,3.27338541,1924.9,1924.6,4.9497164]
[1688239607170,3.27338541,1924.9,1924.7,0.00367891]
[1688239608212,3.27338541,1924.9,1924.6,4.9497164]
[1688239609107,3.27338541,1924.9,1924.7,0.00367891]
[1688239609279,0.32733854,1924.8,1924.7,0.00367891]
[1688239609481,3.27338541,1924.9,1924.7,0.00367891]
[1688239610106,3.27338541,1924.9,1924.6,4.9497164]
[1688239610315,3.27338541,1924.9,1924.6,10.1455164]
[1688239610815,3.27338541,1924.9,1924.6,4.9497164]
[1688239610992,2.1722,1924.9,1924.6,4.9497164]
[1688239611187,2.1722,1924.9,1924.7,0.00367891]
[1688239612119,2.1722,1924.9,1924.6,10.1455964]
[1688239613116,2.1722,1924.9,1924.7,0.00367891]
[1688239614117,2.1722,1924.9,1924.6,10.1455964]
[1688239614423,3.2733764,1924.9,1924.6,10.1455964]
[1688239615186,3.2733764,1924.9,1924.7,0.00367891]
[1688239616089,3.2733764,1924.9,1924.6,10.1455964]
[1688239617127,3.2733764,1924.9,1924.7,0.00367891]
[1688239618319,3.2733764,1924.9,1924.6,10.1455964]
[1688239619118,3.2733764,1924.9,1924.7,0.00367891]
[1688239619320,0.32733764,1924.8,1924.7,0.00367891]
[1688239619523,3.2733764,1924.9,1924.7,0.00367891]
[1688239620194,3.2733764,1924.9,1924.6,10.1455964]
[1688239621219,3.2733764,1924.9,1924.7,0.00367891]
[1688239622317,8.4684464,1924.9,1924.5,11.96937]
[1688239622692,3.2733764,1924.9,1924.5,11.96937]
[1688239623111,3.2733764,1924.9,1924.6,0.00368884]
[1688239623288,0.32733764,1924.8,1924.6,0.00368884]
[1688239623489,8.4685364,1924.9,1924.6,0.00368884]
[1688239623824,3.2733764,1924.9,1924.6,0.00368884]
[1688239624828,3.2733764,1924.9,1924.6,5.19955884]
[1688239625401,3.2733764,1924.9,1924.6,0.00368884]
[1688239626090,3.2733764,1924.9,1924.6,5.19955884]
[1688239626520,3.2733764,1924.9,1924.6,0.00368884]
[1688239627330,0.32733764,1924.8,1924.6,5.19954884]
[1688239627497,3.2733764,1924.9,1924.6,5.19954884]
[1688239628102,8.4684664,1924.9,1924.6,0.00368884]
[1688239628306,3.2733764,1924.9,1924.6,5.19950884]
[1688239628622,3.2733764,1924.9,1924.6,0.00368884]
[1688239629394,8.4684564,1924.9,1924.6,0.00368884]
[1688239629597,9.00036748,1924.8,1924.6,0.00368884]
[1688239629827,16.33722,1924.7,1924.6,0.00368884]
[1688239630142,18.93502,1924.7,1924.2,31.73462004]
[1688239630299,16.33722,1924.7,1924.2,1.35462004]
[1688239630492,16.33722,1924.7,1924.1,6.81757]
[1688239630705,10.538692,1924.6,1924.1,6.81757]
[1688239630904,0.48,1924.5,1924.1,10.3943]
[1688239631244,0.48,1924.5,1924.2,0.0037286]
[1688239631429,0.48,1924.5,1924.2,10.3974186]
[1688239631743,0.48,1924.5,1924.2,5.2004686]
[1688239631901,1.0622622,1924.5,1924.2,5.2004686]
[1688239633527,1.0622622,1924.5,1924.2,0.0037286]
[1688239635298,1.0622622,1924.5,1924.2,5.2006686]
[1688239635617,1.0622622,1924.5,1924.2,5.2005686]
[1688239635817,1.0622622,1924.5,1924.2,0.0037286]
[1688239636330,1.0622622,1924.5,1924.2,5.2006686]
[1688239636700,0.48,1924.5,1924.2,5.2006686]
[1688239639135,0.48,1924.5,1924.2,10.3976286]
[1688239640417,0.48,1924.5,1924.2,5.2006686]
[1688239640615,0.48,1924.5,1924.2,0.0037286]
[1688239641322,0.48,1924.5,1924.2,5.2006486]
[1688239641533,0.48,1924.5,1924.2,0.0037286]
[1688239641723,1.0622622,1924.5,1924.2,0.0037286]
[1688239642845,1.0622622,1924.5,1924.2,5.2006786]
[1688239646845,1.0622622,1924.5,1924.2,10.3976386]
[1688239657522,1.0622622,1924.5,1924.2,5.2006786]
[1688239658658,1.0622622,1924.5,1924.2,10.3976386]
[1688239660933,0.01654914,1924.7,1924.2,12.9961186]
[1688239661133,0.49654914,1924.7,1924.2,12.9961186]
[1688239664560,3.7594,1924.9,1924.2,16.62764044]
[1688239664561,2.1212,1924.9,1924.2,16.62764044]
[1688239664776,0.48,1924.8,1924.4,0.944]
[1688239664938,0.48,1924.8,1924.5,10.3922]
[1688239665147,2.1827,1925.1,1924.6,1.03922]
[1688239665462,7.37728,1925.1,1924.7,5.19552]
[1688239665658,7.79575548,1925.1,1924.7,5.19552]
[1688239666243,7.37728,1925.1,1924.8,0.00366897]
[1688239666632,5.19458,1925.1,1924.8,0.00366897]
[1688239667050,0.48,1925.0,1924.8,0.00366897]
[1688239667251,5.67481,1925.0,1924.8,0.00366897]
[1688239667454,6.761749,1925.0,1924.8,0.00366897]
[1688239668335,6.761749,1925.0,1924.6,10.39146]
[1688239668535,5.67481,1925.0,1924.6,10.39146]
[1688239669269,5.67481,1925.0,1924.7,0.00360198]
[1688239670344,5.67481,1925.0,1924.6,10.39146]
[1688239670856,0.48,1925.0,1924.6,10.39146]
[1688239671254,0.48,1925.0,1924.7,0.00360198]
[1688239672270,0.48,1925.0,1924.6,10.39146]
[1688239673352,0.48,1925.0,1924.7,0.00360198]
[1688239674348,0.48,1925.0,1924.6,10.39146]
[1688239674551,0.48,1925.0,1924.6,12.145363]
[1688239675161,0.48,1925.0,1924.7,0.00360198]
[1688239676274,0.48,1925.0,1924.6,12.145363]
[1688239677377,0.48,1925.0,1924.7,0.00360198]
[1688239678374,0.48,1925.0,1924.6,10.39146]
[1688239679289,0.48,1925.0,1924.7,0.00360198]
[1688239680281,0.48,1925.0,1924.7,5.19556]
[1688239681380,0.48,1925.0,1924.8,0.00359205]
[1688239682306,1.72204914,1925.2,1924.8,0.00359205]
[1688239682590,0.48,1925.1,1924.8,5.19892205]
[1688239682797,0.48,1925.1,1924.8,10.39426205]
[1688239682948,0.48,1925.1,1924.8,5.19892205]
[1688239684095,15.98185949,1925.3,1924.8,5.19892205]
[1688239684096,5.59360949,1925.3,1924.8,11.59885226]
[1688239684404,5.19356,1925.5,1924.8,17.8250441]
[1688239684718,5.19356,1925.5,1924.9,6.84648]
[1688239685076,10.38712,1925.5,1924.9,6.84648]
[1688239685277,10.38712,1925.5,1925.0,0.00357218]
[1688239685278,1.7533,1925.4,1925.0,0.00357218]
[1688239686378,6.94705,1925.4,1925.0,0.00357218]
[1688239687828,1.7533,1925.4,1925.0,0.00357218]
[1688239688215,6.94706,1925.4,1925.0,0.00357218]
[1688239692205,0.48,1925.3,1925.0,0.00357218]
[1688239692513,10.153172,1925.3,1925.0,0.00357218]
[1688239693102,1.7172,1925.2,1925.0,0.00357218]
[1688239693308,1.7172,1925.2,1924.6,46.30194]
[1688239693505,1.7172,1925.2,1924.7,5.19561]
[1688239693915,2.6662,1925.2,1924.6,8.21802184]
[1688239694216,0.26662,1925.1,1924.8,0.00359205]
[1688239695194,0.26662,1925.1,1924.6,13.41385184]
[1688239695523,2.6662,1925.2,1924.6,13.41385184]
[1688239695707,2.6662,1925.2,1924.6,11.45315184]
[1688239696422,2.6662,1925.2,1924.7,0.00360198]
[1688239696595,0.49654914,1925.1,1924.7,0.00360198]
[1688239696928,6.1438,1925.0,1924.7,0.00360198]
[1688239697113,1.09438,1924.9,1924.7,0.00360198]
[1688239697291,1.09438,1924.9,1924.3,35.57668]
[1688239697615,1.09438,1924.9,1924.2,16.28455293]
[1688239697819,6.28945,1924.9,1924.2,9.52750477]
[1688239697998,6.28945,1924.9,1924.2,12.30047184]
[1688239698198,0.628945,1924.8,1924.3,0.00364174]
[1688239698397,0.48,1924.7,1924.3,5.20021174]
[1688239698599,1.09438,1924.9,1924.3,5.20021174]
[1688239698796,1.09438,1924.9,1924.3,10.39690174]
[1688239699019,1.09438,1924.9,1924.3,12.99524174]
[1688239705143,6.28949,1924.9,1924.3,12.99524174]
[1688239705350,0.628949,1924.8,1924.3,12.99524174]
[1688239705500,0.48,1924.7,1924.3,12.99524174]
[1688239706427,2.73,1924.7,1924.3,12.99524174]
[1688239708022,2.73,1924.7,1924.3,13.94224174]
[1688239708325,1.6259,1924.8,1924.3,13.94224174]
[1688239708509,11.33135,1925.1,1924.3,15.88316591]
[1688239708704,3.9496,1925.0,1924.3,16.62976358]
[1688239708932,9.14444,1925.0,1924.3,16.62976358]
[1688239709293,14.33928,1925.0,1924.3,16.62976358]
[1688239715111,0.949,1924.9,1924.3,0.00364174]
[1688239715329,5.19564,1924.7,1924.3,0.00364174]
[1688239715506,0.519564,1924.6,1924.3,0.00364174]
[1688239715708,2.764964,1924.6,1924.3,0.00364174]
[1688239716339,2.2454,1924.6,1924.1,5.61525437]
[1688239716638,2.2454,1924.6,1924.1,5.61539437]
[1688239717230,2.2454,1924.6,1924.2,0.00365168]
[1688239717417,3.8447,1924.6,1924.2,0.00365168]
[1688239717931,3.8447,1924.6,1924.2,5.20061168]
[1688239718253,0.38447,1924.5,1924.2,0.00365168]
[1688239718424,0.38447,1924.5,1924.2,5.20060168]
[1688239719845,3.8447,1924.6,1924.2,10.39756168]
[1688239720345,0.01654914,1924.8,1924.2,16.63256352]
[1688239720643,2.18974914,1924.8,1924.4,10.39256]
[1688239721210,2.18974914,1924.8,1924.5,0.00362186]
[1688239721434,2.18974914,1924.8,1924.5,5.19964186]
[1688239722316,3.09654305,1924.8,1924.5,5.19964186]
[1688239728652,2.18974914,1924.8,1924.5,5.19964186]
[1688239728864,0.01654914,1924.8,1924.5,5.19964186]
[1688239729183,10.39004,1925.0,1924.5,5.19964186]
[1688239729184,5.19496,1925.0,1924.5,10.39579186]
[1688239729351,7.37006,1925.0,1924.5,10.39579186]
[1688239729665,2.1751,1925.0,1924.7,5.19558]
[1688239730219,1.6432,1925.1,1924.8,0.00359205]
[1688239730472,5.1751,1925.2,1924.8,0.00359205]
[1688239730638,10.36937,1925.2,1924.8,0.00359205]
[1688239732124,5.19347,1925.5,1924.8,14.03060389]
[1688239732275,2.1799,1925.4,1924.9,1.40306039]
[1688239732639,7.37365,1925.4,1924.9,1.40306039]
[1688239734239,7.37365,1925.4,1925.0,0.00357218]
[1688239734454,12.5674,1925.4,1925.0,0.00357218]
[1688239735239,12.5674,1925.4,1924.8,9.47277184]
[1688239735433,12.5674,1925.4,1924.8,11.47983202]
[1688239738258,12.5674,1925.4,1924.9,0.00358211]
[1688239739375,12.5674,1925.4,1924.8,11.47983202]
[1688239740271,12.5674,1925.4,1924.9,0.00358211]
[1688239741240,12.5674,1925.4,1924.8,11.47983202]
[1688239741476,1.7535,1925.3,1924.8,11.47983202]
[1688239741976,6.94751,1925.3,1924.8,11.47983202]
[1688239742274,6.94751,1925.3,1924.9,0.00358211]
[1688239742663,7.37365,1925.4,1924.9,0.00358211]
[1688239742864,2.1799,1925.4,1924.9,15.69196836]
[1688239743064,1.6321,1925.5,1924.9,10.49689836]
[1688239743253,1.6321,1925.5,1925.0,1.503]
[1688239744274,1.6321,1925.5,1925.1,0.00356224]
[1688239745278,6.8256,1925.5,1925.1,0.00356224]
[1688239747144,12.0191,1925.5,1925.1,0.00356224]
[1688239748666,6.8256,1925.5,1925.1,0.00356224]
[1688239752155,8.64435383,1925.5,1925.1,0.00057383]
[1688239752462,8.64435383,1925.5,1925.1,0.00344731]
[1688239771385,9.59035383,1925.5,1925.1,0.00344731]
[1688239774009,8.64435383,1925.5,1925.1,0.00344731]
[1688239778685,13.83785383,1925.5,1925.1,0.00344731]
[1688239778915,1.38378538,1925.4,1925.1,0.00344731]
[1688239779621,3.61178538,1925.4,1925.1,0.00344731]
[1688239786539,8.80551538,1925.4,1925.1,0.00344731]
[1688239786908,1.7157,1925.3,1925.1,0.00344731]
[1688239787306,1.7157,1925.3,1924.8,7.80702]
[1688239787518,1.7157,1925.3,1924.8,12.18104884]
[1688239788340,1.7157,1925.3,1924.9,0.00346717]
[1688239789411,1.7157,1925.3,1924.8,17.37636884]
[1688239789615,1.7157,1925.3,1924.8,16.84821127]
[1688239790449,1.7157,1925.3,1924.9,0.00346717]
[1688239791350,1.7157,1925.3,1924.8,17.79121127]
[1688239792461,1.7157,1925.3,1924.9,0.00346717]
[1688239793315,1.7157,1925.3,1924.8,17.79121127]
[1688239794351,1.7157,1925.3,1924.9,0.00346717]
[1688239795547,1.7157,1925.3,1924.8,11.65289127]
[1688239796270,1.7157,1925.3,1924.9,0.00346717]
[1688239796570,2.76782954,1925.3,1924.9,0.00346717]
[1688239797266,2.76782954,1925.3,1924.8,16.84810127]
[1688239798331,2.76782954,1925.3,1924.9,0.00346717]
[1688239799266,2.76782954,1925.3,1924.8,16.84810127]
[1688239799766,7.96183954,1925.3,1924.8,3.349207]
[1688239799975,0.79618395,1925.2,1924.7,6.14459]
[1688239800139,2.95248395,1925.2,1924.7,9.54891184]
[1688239800344,2.95248395,1925.2,1924.7,14.74452184]
[1688239800536,2.1563,1925.2,1924.7,15.69352184]
[1688239800864,2.1563,1925.2,1924.7,16.09988689]
[1688239801075,2.1563,1925.2,1924.7,18.09988689]
[1688239801435,1.3655481,1925.5,1924.8,2.68752184]
[1688239801664,14.33552,1925.6,1924.9,5.19497]
[1688239801964,5.278652,1925.5,1924.9,9.47549184]
[1688239805370,10.472132,1925.5,1924.9,9.47549184]
[1688239805774,15.665612,1925.5,1924.9,4.28052184]
[1688239806074,16.611612,1925.5,1924.8,1.9983]
[1688239806250,0.95954914,1925.4,1924.7,2.40636505]
[1688239806453,3.9231,1925.3,1924.7,2.68752184]
[1688239806771,0.39231,1925.2,1924.6,31.9116]
[1688239806969,0.39231,1925.2,1924.6,44.99077184]
[1688239807273,3.9231,1925.3,1924.8,5.19529]
[1688239807576,3.9231,1925.3,1924.8,7.88281184]
[1688239808040,3.9231,1925.3,1924.8,9.45411184]
[1688239808744,0.01654914,1925.4,1924.9,2.68752184]
[1688239814974,5.21026914,1925.4,1924.9,2.68752184]
[1688239815277,6.76840825,1925.4,1924.9,2.68752184]
[1688239817081,6.76840825,1925.4,1924.9,5.28752184]
[1688239822082,6.76840825,1925.4,1925.0,0.0035848]
[1688239825890,1.57468825,1925.4,1925.0,0.0035848]
[1688239826261,0.01654914,1925.4,1925.0,0.0035848]
[1688239835397,5.21031914,1925.4,1925.0,0.0035848]
[1688239837402,0.01654914,1925.4,1925.0,0.0035848]
[1688239840787,5.21029914,1925.4,1925.0,0.0035848]
[1688239842245,5.62685684,1925.4,1925.0,0.0035848]
[1688239842444,0.56268568,1925.3,1925.0,0.0035848]
[1688239843042,4.46898568,1925.3,1925.0,0.0035848]
[1688239868261,4.48553482,1925.3,1925.0,0.0035848]
[1688239870059,9.67952482,1925.3,1925.0,0.0035848]
[1688239871647,4.48553482,1925.3,1925.0,0.0035848]
[1688239871847,0.44855348,1925.2,1925.0,0.0035848]
[1688239873059,10.83710348,1925.2,1925.0,0.0035848]
[1688239873260,0.949,1925.1,1925.0,0.0035848]
[1688239873482,11.33806,1925.1,1925.0,0.0035848]
[1688239873844,13.93532,1925.1,1925.0,0.0035848]
[1688239874045,16.18905953,1925.1,1924.9,2.6]
[1688239874758,13.59179953,1925.1,1924.9,2.6]
[1688239875083,16.18905953,1925.1,1925.0,0.00332316]
[1688239875497,24.34258137,1925.1,1925.0,0.00332316]
[1688239875651,22.22532137,1925.1,1925.0,0.00332316]
[1688239875984,21.73832137,1925.1,1925.0,0.00332316]
[1688239876174,24.33558137,1925.1,1925.0,0.00332316]
[1688239876751,24.35213051,1925.1,1925.0,0.00332316]
[1688239877152,24.35213051,1925.1,1924.9,2.6]
[1688239877352,7.90121305,1925.0,1924.9,2.6]
[1688239877554,20.97833489,1925.0,1924.9,2.6]
[1688239878082,20.97833489,1925.0,1924.9,2.60333309]
[1688239878790,23.57573489,1925.0,1924.9,2.60333309]
[1688239879092,24.52473489,1925.0,1924.9,2.60333309]
[1688239880194,24.52473489,1925.0,1924.9,2.6]
[1688239888623,23.57573489,1925.0,1924.9,2.6]
[1688239923258,10.3896,1925.0,1924.9,2.6]
[1688239923551,10.81501749,1925.1,1924.9,2.6]
[1688239924149,10.81501749,1925.1,1925.0,0.00332316]
[1688239924938,13.41227749,1925.1,1925.0,0.00332316]
[1688239925142,13.41227749,1925.1,1924.9,2.6]
[1688239926066,13.41227749,1925.1,1925.0,0.00332316]
[1688239926257,5.62038749,1925.1,1925.0,0.00332316]
[1688239926429,10.81501749,1925.1,1925.0,0.00332316]
[1688239934057,10.81491749,1925.1,1925.0,0.00332316]
[1688239948893,5.62028749,1925.1,1925.0,0.00332316]
[1688239950366,0.42575749,1925.1,1925.0,1.29875548]
[1688239950592,5.19391,1925.4,1925.0,1.29875548]
[1688239950793,10.38788,1925.4,1925.0,0.35775548]
[1688239950970,5.19391,1925.4,1925.0,0.35775548]
[1688239951694,10.38788,1925.4,1925.0,0.35775548]
[1688239953971,10.38788,1925.4,1925.2,0.944]
[1688239955198,10.38788,1925.4,1925.3,0.00329336]
[1688239955495,5.19391,1925.4,1925.3,0.00329336]
[1688239956794,10.38788,1925.4,1925.3,0.00329336]
[1688239963596,5.19391,1925.4,1925.3,0.00329336]
[1688239964179,5.19391,1925.4,1925.0,0.944]
[1688239964502,5.19391,1925.4,1925.0,1.45591]
[1688239965172,5.19391,1925.4,1925.1,0.00331322]
[1688239965996,10.38788,1925.4,1925.1,0.00331322]
[1688239970718,10.38788,1925.4,1925.1,0.94431322]
[1688239974135,10.38788,1925.4,1925.1,0.00331322]
[1688239974896,12.11718,1925.4,1925.1,0.00331322]
[1688239975098,12.67116053,1925.4,1924.9,5.1181]
[1688239975410,12.11718,1925.4,1924.9,5.1181]
[1688239976339,12.11718,1925.4,1925.0,0.0034526]
[1688239980596,12.11718,1925.4,1925.0,0.9524526]
[1688239989020,12.11718,1925.4,1925.0,0.0034526]
[1688239998559,14.39778,1925.4,1925.0,0.0034526]
[1688240007178,9.20381,1925.4,1925.0,0.0034526]
[1688240007465,12.52942023,1925.5,1925.0,0.51570786]
[1688240008564,12.11291,1925.5,1925.0,0.51570786]
[1688240009374,14.70963,1925.5,1925.0,0.51570786]
[1688240009665,14.70963,1925.5,1925.0,0.0034526]
[1688240010933,12.11291,1925.5,1925.0,0.0034526]
[1688240012236,12.11291,1925.5,1925.1,0.947]
[1688240012657,12.11291,1925.5,1925.0,0.0034526]
[1688240026960,6.79989,1925.4,1925.0,0.0034526]
[1688240027160,6.79989,1925.4,1925.0,0.51600786]
[1688240029589,1.6061,1925.4,1925.0,0.51600786]
[1688240029808,12.06821,1925.5,1925.0,0.51600786]
[1688240030262,12.06821,1925.5,1925.0,2.11510786]
[1688240031588,6.87457,1925.5,1925.0,2.11510786]
[1688240031759,12.06823,1925.5,1925.0,2.11510786]
[1688240040290,6.87457,1925.5,1925.0,2.11510786]
[1688240040779,12.06823,1925.5,1925.0,2.11510786]
[1688240042654,6.87457,1925.5,1925.0,2.11510786]
[1688240043139,12.06802,1925.5,1925.0,2.11510786]
[1688240043621,6.87445,1925.5,1925.0,2.11510786]
[1688240043781,12.0679,1925.5,1925.0,2.11510786]
[1688240043983,6.87445,1925.5,1925.0,2.11510786]
[1688240046303,2.70009108,1925.6,1925.0,3.2035297]
[1688240046507,2.70009108,1925.6,1925.2,0.949]
[1688240046908,0.41119108,1925.6,1925.2,0.949]
[1688240047089,0.41119108,1925.6,1925.3,0.00329336]
[1688240047293,12.08298496,1925.7,1925.3,0.00329336]
[1688240047504,7.30176971,1925.7,1925.3,0.00329336]
[1688240048437,12.49478971,1925.7,1925.3,0.00329336]
[1688240048635,14.21365268,1925.7,1925.3,0.00329336]
[1688240050810,16.81010268,1925.7,1925.3,0.00329336]
[1688240051014,4.0296,1925.6,1925.3,0.00329336]
[1688240051205,9.22299,1925.6,1925.1,0.944]
[1688240051404,9.22299,1925.6,1925.0,0.942]
[1688240051635,1.6286,1925.5,1925.0,1.452]
[1688240052126,1.6286,1925.5,1925.1,0.00331322]
[1688240063182,1.6286,1925.5,1925.1,0.95231322]
[1688240063980,1.6286,1925.5,1925.1,0.00331322]
[1688240064184,1.6400591,1925.5,1925.1,0.00331322]
[1688240064481,1.6400591,1925.5,1925.1,0.29945454]
[1688240064888,1.6400591,1925.5,1925.1,0.00331322]
[1688240065256,6.8335291,1925.5,1925.1,0.00331322]
[1688240066280,1.6400591,1925.5,1925.1,0.00331322]
[1688240068683,6.8335091,1925.5,1925.1,0.00331322]
[1688240073905,12.0269591,1925.5,1925.1,0.00331322]
[1688240074106,2.87839591,1925.4,1924.9,2.6]
[1688240074277,6.8809091,1925.4,1924.9,2.6]
[1688240074712,9.0291091,1925.4,1924.9,2.6]
[1688240074903,3.8353591,1925.4,1924.9,7.79504]
[1688240075211,3.8353591,1925.4,1925.0,0.00332316]
[1688240092063,9.0291191,1925.4,1925.0,0.00332316]
[1688240092218,0.90291191,1925.3,1925.0,0.00332316]
[1688240092421,0.91437101,1925.3,1925.0,0.00332316]
[1688240093040,2.51257101,1925.3,1925.0,0.00332316]
[1688240104977,2.93187442,1925.3,1925.0,0.00332316]
[1688240119456,8.12592442,1925.3,1925.0,0.00332316]
[1688240119660,0.81259244,1925.2,1925.0,0.00332316]
[1688240119973,6.01835154,1925.2,1925.0,0.00332316]
[1688240120983,0.82405154,1925.2,1925.0,0.00332316]
[1688240121558,6.01833154,1925.2,1925.0,0.00332316]
[1688240122293,0.82405154,1925.2,1925.0,0.00332316]
[1688240122495,6.01839154,1925.2,1925.0,0.00332316]
[1688240122705,0.60183915,1925.1,1925.0,0.00332316]
[1688240123114,0.61329825,1925.1,1925.0,0.00332316]
[1688240132088,5.80782825,1925.1,1925.0,0.00332316]
[1688240132488,0.61329825,1925.1,1925.0,0.00332316]
[1688240132661,11.00235825,1925.1,1925.0,0.00332316]
[1688240132986,5.80782825,1925.1,1925.0,0.00332316]
[1688240137122,6.21743946,1925.1,1925.0,0.00332316]
[1688240140134,11.41196946,1925.1,1925.0,0.00332316]
[1688240141758,6.21743946,1925.1,1925.0,0.00332316]
[1688240142214,11.41196946,1925.1,1925.0,0.00332316]
[1688240143846,6.21743946,1925.1,1925.0,0.00332316]
[1688240144457,11.41196946,1925.1,1925.0,0.00332316]
[1688240146132,6.21743946,1925.1,1925.0,0.00332316]
[1688240146938,11.41196946,1925.1,1925.0,0.00332316]
[1688240147163,6.21743946,1925.1,1925.0,0.00332316]
[1688240158092,11.41196946,1925.1,1925.0,0.00332316]
[1688240159193,6.21743946,1925.1,1925.0,0.00332316]
[1688240159495,11.41196946,1925.1,1925.0,0.00332316]
[1688240159685,6.21743946,1925.1,1925.0,0.00332316]
[1688240160084,11.41196946,1925.1,1925.0,0.00332316]
[1688240165811,16.6967513,1925.1,1925.0,0.00332316]
[1688240166391,16.6967513,1925.1,1924.9,2.6]
[1688240166594,14.74679697,1925.0,1924.9,2.6]
[1688240167166,14.74679697,1925.0,1924.9,2.60392094]
[1688240167672,14.75825607,1925.0,1924.9,2.60392094]
[1688240168301,14.77480521,1925.0,1924.9,2.60392094]
[1688240171501,17.37220521,1925.0,1924.9,2.60392094]
[1688240172116,14.77480521,1925.0,1924.9,2.60392094]
[1688240186740,17.37220521,1925.0,1924.9,2.60392094]
[1688240187444,14.77480521,1925.0,1924.9,2.6]
[1688240187649,17.37220521,1925.0,1924.9,2.6]
[1688240189257,17.37220521,1925.0,1924.9,2.60392094]
[1688240191105,22.83820521,1925.0,1924.9,2.60392094]
[1688240197916,20.24080521,1925.0,1924.9,2.60392094]
[1688240204172,0.02800824,1925.0,1924.9,2.60392094]
[1688240204327,0.0114591,1925.0,1924.9,2.60392094]
[1688240216973,0.0114591,1925.0,1924.9,3.55292094]
[1688240230762,0.0114591,1925.0,1924.9,2.60392094]
[1688240232057,0.0114591,1925.0,1924.9,0.00392094]
[1688240233219,0.0114591,1925.0,1924.8,0.949]
[1688240234352,0.0114591,1925.0,1924.9,0.00392094]
[1688240235358,0.0114591,1925.0,1924.7,2.5134]
[1688240236238,0.0114591,1925.0,1924.8,0.0039309]
[1688240242929,5.2063391,1925.0,1924.8,0.0039309]
[1688240243133,0.0114591,1925.0,1924.8,0.0039309]
[1688240243543,5.2064291,1925.0,1924.8,0.0039309]
[1688240243870,0.0114591,1925.0,1924.8,0.0039309]
[1688240246675,5.2063491,1925.0,1924.8,0.0039309]
[1688240250259,6.41019001,1925.0,1924.8,0.0039309]
[1688240255268,5.2063491,1925.0,1924.8,0.0039309]
[1688240257567,10.4012391,1925.0,1924.8,0.0039309]
[1688240257983,5.2063491,1925.0,1924.8,0.0039309]
[1688240258706,5.2063891,1925.0,1924.8,0.0039309]
[1688240259811,0.0114591,1925.0,1924.8,0.0039309]
[1688240271394,1.42939101,1925.0,1924.8,0.0039309]
[1688240276213,0.0114591,1925.0,1924.8,0.0039309]
[1688240278893,5.2062891,1925.0,1924.8,0.0039309]
[1688240279723,5.2062691,1925.0,1924.8,0.0039309]
[1688240280503,0.0114591,1925.0,1924.8,0.0039309]
[1688240289049,2.68752184,1924.9,1924.8,0.0039309]
[1688240289258,13.34755993,1924.9,1924.8,0.0039309]
[1688240289549,13.35901903,1924.9,1924.8,0.0039309]
[1688240290355,15.95654903,1924.9,1924.8,0.0039309]
[1688240291241,15.95654903,1924.9,1924.7,2.6]
[1688240292355,15.95654903,1924.9,1924.8,0.00393212]
[1688240293359,15.95654903,1924.9,1924.7,2.6]
[1688240293547,11.9863349,1924.8,1924.7,2.6]
[1688240294359,11.9863349,1924.8,1924.7,2.60394209]
[1688240294529,11.997794,1924.8,1924.7,2.60394209]
[1688240298122,14.595464,1924.8,1924.7,2.60394209]
[1688240299922,17.28298584,1924.8,1924.7,2.60394209]
[1688240300226,22.74898584,1924.8,1924.7,2.60394209]
[1688240301334,22.74898584,1924.8,1924.7,2.6]
[1688240301718,22.76553498,1924.8,1924.7,2.6]
[1688240309770,23.71153498,1924.8,1924.7,2.6]
[1688240311267,24.19153498,1924.8,1924.7,2.6]
[1688240311677,23.24553498,1924.8,1924.7,2.6]
[1688240312183,24.19153498,1924.8,1924.7,2.6]
[1688240317881,23.24553498,1924.8,1924.7,2.6]
[1688240319179,24.19153498,1924.8,1924.7,2.6]
[1688240324698,23.24553498,1924.8,1924.7,2.6]
[1688240325478,27.19453498,1924.8,1924.7,2.6]
[1688240328466,27.19453498,1924.8,1924.0,0.949]
[1688240328669,18.45692,1924.5,1924.0,0.949]
[1688240328897,2.68752184,1924.4,1924.0,0.949]
[1688240329105,10.39348,1924.3,1924.0,0.949]
[1688240329302,13.08100184,1924.3,1924.1,0.00384634]
[1688240329503,15.67934184,1924.3,1924.1,0.00384634]
[1688240333414,18.01642094,1924.3,1924.1,0.00384634]
[1688240338521,13.08144184,1924.2,1924.1,0.00384634]
[1688240338711,15.67992184,1924.2,1924.1,0.00384634]
[1688240346312,15.67992184,1924.2,1923.8,2.915]
[1688240346628,15.67992184,1924.2,1923.5,2.31048638]
[1688240346629,15.67992184,1924.2,1923.9,0.942]
[1688240346834,18.32994514,1924.2,1923.9,0.942]
[1688240347043,18.34649428,1924.2,1923.9,0.942]
[1688240347462,18.34649428,1924.2,1924.0,0.00385631]
[1688240348126,23.81249428,1924.2,1924.0,0.00385631]
[1688240353250,29.00945428,1924.2,1924.0,0.00385631]
[1688240353441,8.36694543,1924.1,1924.0,0.00385631]
[1688240353643,27.99273727,1924.1,1924.0,0.00385631]